[Event "Titled Tuesday Blitz November 29 Late 2022"]
[White "Cruz Gomez, Miguel Angel"]
[Black "Bas Mas, Jose Joaquin"]
[WhiteFideId "5137160"]
[BlackFideId "22219064"]
[WhiteElo "2126"]
[BlackElo "2233"]
[Result "0-1"]
[Round "02"]
[TimeControl "180+1"]
[Date "2022.11.30"]
[WhiteClock "0:00:27"]
[BlackClock "0:00:13"]

1. Nf3 {[%clk 0:03:00]}  b6 {[%clk 0:02:55]} 2. d4 {[%clk 0:02:53]}  Bb7 {[%clk 0:02:56]} 3. Bf4 {[%clk 0:02:52]}  g6 {[%clk 0:02:52]} 4. Nc3 {[%clk 0:02:52]}  Nf6 {[%clk 0:02:50]} 5. Qd2 {[%clk 0:02:52]}  d6 {[%clk 0:02:48]} 6. O-O-O {[%clk 0:02:51]}  Nbd7 {[%clk 0:02:42]} 7. e3 {[%clk 0:02:48]}  Bg7 {[%clk 0:02:40]} 8. h4 {[%clk 0:02:44]}  h5 {[%clk 0:02:39]} 9. Ng5 {[%clk 0:02:43]}  a6 {[%clk 0:02:35]} 10. Bc4 {[%clk 0:02:40]}  O-O {[%clk 0:02:33]} 11. Qd3 {[%clk 0:02:27]}  b5 {[%clk 0:02:15]} 12. Bb3 {[%clk 0:02:22]}  e6 {[%clk 0:02:07]} 13. Bxe6 {[%clk 0:02:06]}  fxe6 {[%clk 0:02:02]} 14. Nxe6 {[%clk 0:02:07]}  Qe7 {[%clk 0:02:01]} 15. Nxf8 {[%clk 0:01:52]}  Nxf8 {[%clk 0:02:02]} 16. f3 {[%clk 0:01:51]}  b4 {[%clk 0:01:59]} 17. Ne2 {[%clk 0:01:46]}  a5 {[%clk 0:01:57]} 18. Kb1 {[%clk 0:01:42]}  Ba6 {[%clk 0:01:47]} 19. Qd2 {[%clk 0:01:33]}  Ne6 {[%clk 0:01:43]} 20. Bg5 {[%clk 0:01:32]}  Nxg5 {[%clk 0:01:40]} 21. hxg5 {[%clk 0:01:33]}  Nd5 {[%clk 0:01:41]} 22. e4 {[%clk 0:01:34]}  Nb6 {[%clk 0:01:33]} 23. Nc1 {[%clk 0:01:21]}  Nc4 {[%clk 0:01:30]} 24. Qf2 {[%clk 0:01:19]}  c5 {[%clk 0:01:28]} 25. dxc5 {[%clk 0:01:16]}  dxc5 {[%clk 0:01:02]} 26. Nd3 {[%clk 0:01:12]}  Bd4 {[%clk 0:01:02]} 27. Qh4 {[%clk 0:01:11]}  Ne3 {[%clk 0:00:58]} 28. Nf4 {[%clk 0:01:00]}  Qf7 {[%clk 0:00:42]} 29. Rde1 {[%clk 0:00:41]}  Nxc2 {[%clk 0:00:34]} 30. Kxc2 {[%clk 0:00:40]}  Qxa2 {[%clk 0:00:35]} 31. Nxg6 {[%clk 0:00:37]}  Qxb2+ {[%clk 0:00:32]} 32. Kd1 {[%clk 0:00:37]}  Qb1+ {[%clk 0:00:30]} 33. Kd2 {[%clk 0:00:37]}  Qd3+ {[%clk 0:00:31]} 34. Kc1 {[%clk 0:00:36]}  Be3+ {[%clk 0:00:16]} 35. Rxe3 {[%clk 0:00:35]}  Qxe3+ {[%clk 0:00:17]} 36. Kb1 {[%clk 0:00:35]}  Bd3+ {[%clk 0:00:15]} 37. Ka1 {[%clk 0:00:30]}  Qd4+ {[%clk 0:00:15]} 38. Ka2 {[%clk 0:00:29]}  b3+ {[%clk 0:00:14]} 39. Kxb3 {[%clk 0:00:27]}  Rb8+ {[%clk 0:00:13]} 0-1


[Site "https://www.chess.com"]

[Event "Titled Tuesday Blitz November 29 Late 2022"]
[White "Czopor, Maciej"]
[Black "Hansen, Eric"]
[WhiteFideId "21805431"]
[BlackFideId "2606771"]
[WhiteElo "2324"]
[BlackElo "2568"]
[Result "1-0"]
[Round "02"]
[TimeControl "180+1"]
[Date "2022.11.30"]
[WhiteClock "0:00:04"]
[BlackClock "0:00:02"]

1. c4 {[%clk 0:03:00]}  e5 {[%clk 0:02:38]} 2. Nc3 {[%clk 0:03:00]}  Bb4 {[%clk 0:02:28]} 3. Qc2 {[%clk 0:02:50]}  Nc6 {[%clk 0:02:26]} 4. e3 {[%clk 0:02:45]}  Nf6 {[%clk 0:02:23]} 5. a3 {[%clk 0:02:40]}  Bxc3 {[%clk 0:02:23]} 6. Qxc3 {[%clk 0:02:41]}  O-O {[%clk 0:02:23]} 7. d3 {[%clk 0:02:39]}  d5 {[%clk 0:02:19]} 8. cxd5 {[%clk 0:02:38]}  Nxd5 {[%clk 0:02:20]} 9. Qc2 {[%clk 0:02:38]}  Re8 {[%clk 0:02:19]} 10. Nf3 {[%clk 0:02:37]}  a5 {[%clk 0:02:16]} 11. Be2 {[%clk 0:02:36]}  a4 {[%clk 0:02:13]} 12. O-O {[%clk 0:02:35]}  Nb6 {[%clk 0:02:10]} 13. Bd2 {[%clk 0:02:31]}  Be6 {[%clk 0:02:10]} 14. Rac1 {[%clk 0:02:26]}  Bb3 {[%clk 0:02:09]} 15. Qb1 {[%clk 0:02:26]}  Qd6 {[%clk 0:02:08]} 16. Bc3 {[%clk 0:02:23]}  Rad8 {[%clk 0:02:08]} 17. Nd2 {[%clk 0:02:23]}  Bd5 {[%clk 0:02:08]} 18. Rfd1 {[%clk 0:02:13]}  Qg6 {[%clk 0:02:08]} 19. Bf1 {[%clk 0:02:13]}  h5 {[%clk 0:02:08]} 20. Qc2 {[%clk 0:01:54]}  h4 {[%clk 0:02:06]} 21. h3 {[%clk 0:01:53]}  Rd6 {[%clk 0:01:45]} 22. Ne4 {[%clk 0:01:35]}  Bb3 {[%clk 0:01:45]} 23. Qb1 {[%clk 0:01:36]}  Rd5 {[%clk 0:01:44]} 24. Re1 {[%clk 0:01:33]}  Red8 {[%clk 0:01:13]} 25. Nd2 {[%clk 0:01:31]}  Rb5 {[%clk 0:01:07]} 26. Nxb3 {[%clk 0:01:23]}  Rxb3 {[%clk 0:01:05]} 27. Qc2 {[%clk 0:01:16]}  Nd5 {[%clk 0:01:01]} 28. Bd2 {[%clk 0:01:08]}  Nf6 {[%clk 0:01:00]} 29. Qc4 {[%clk 0:00:48]}  Ra8 {[%clk 0:00:54]} 30. Rc2 {[%clk 0:00:38]}  e4 {[%clk 0:00:31]} 31. d4 {[%clk 0:00:29]}  Ne7 {[%clk 0:00:27]} 32. Qxc7 {[%clk 0:00:17]}  Rc8 {[%clk 0:00:26]} 33. Qxc8+ {[%clk 0:00:18]}  Nxc8 {[%clk 0:00:27]} 34. Rxc8+ {[%clk 0:00:19]}  Kh7 {[%clk 0:00:28]} 35. Bc3 {[%clk 0:00:19]}  b5 {[%clk 0:00:18]} 36. Rc5 {[%clk 0:00:18]}  Nd7 {[%clk 0:00:15]} 37. Rxb5 {[%clk 0:00:18]}  Nb6 {[%clk 0:00:10]} 38. Rxb3 {[%clk 0:00:16]}  axb3 {[%clk 0:00:10]} 39. Bb5 {[%clk 0:00:15]}  Qf5 {[%clk 0:00:09]} 40. a4 {[%clk 0:00:15]}  Nd5 {[%clk 0:00:08]} 41. Bd2 {[%clk 0:00:14]}  g5 {[%clk 0:00:03]} 42. Be2 {[%clk 0:00:07]}  Nf6 {[%clk 0:00:02]} 43. a5 {[%clk 0:00:06]}  g4 {[%clk 0:00:02]} 44. hxg4 {[%clk 0:00:06]}  Nxg4 {[%clk 0:00:03]} 45. Bxg4 {[%clk 0:00:03]}  Qxg4 {[%clk 0:00:03]} 46. Kh2 {[%clk 0:00:02]}  Qf5 {[%clk 0:00:02]} 47. Rf1 {[%clk 0:00:01]}  Qb5 {[%clk 0:00:02]} 48. Ra1 {[%clk 0:00:01]}  Qa6 {[%clk 0:00:02]} 49. Kh3 {[%clk 0:00:01]}  Kg6 {[%clk 0:00:02]} 50. Kxh4 {[%clk 0:00:01]}  Kf5 {[%clk 0:00:02]} 51. Kh3 {[%clk 0:00:01]}  Ke6 {[%clk 0:00:03]} 52. g3 {[%clk 0:00:01]}  Kd5 {[%clk 0:00:03]} 53. Kg2 {[%clk 0:00:02]}  Kc6 {[%clk 0:00:03]} 54. Bc3 {[%clk 0:00:03]}  Kb7 {[%clk 0:00:04]} 55. Rh1 {[%clk 0:00:03]}  Qe2 {[%clk 0:00:04]} 56. Rh4 {[%clk 0:00:03]}  Qf3+ {[%clk 0:00:04]} 57. Kg1 {[%clk 0:00:04]}  Qd1+ {[%clk 0:00:04]} 58. Kg2 {[%clk 0:00:05]}  Qf3+ {[%clk 0:00:04]} 59. Kg1 {[%clk 0:00:05]}  Qd1+ {[%clk 0:00:04]} 60. Kg2 {[%clk 0:00:06]}  Qc2 {[%clk 0:00:04]} 61. Rf4 {[%clk 0:00:06]}  Qxc3 {[%clk 0:00:04]} 62. bxc3 {[%clk 0:00:04]}  b2 {[%clk 0:00:04]} 63. Rxf7+ {[%clk 0:00:05]}  Ka6 {[%clk 0:00:04]} 64. Rf6+ {[%clk 0:00:03]}  Kxa5 {[%clk 0:00:04]} 65. Rf8 {[%clk 0:00:03]}  Ka4 {[%clk 0:00:02]} 66. Ra8+ {[%clk 0:00:03]}  Kb3 {[%clk 0:00:02]} 67. Rb8+ {[%clk 0:00:04]}  Kxc3 {[%clk 0:00:02]} 68. Rxb2 {[%clk 0:00:04]} 1-0


[Site "https://www.chess.com"]

[Event "Titled Tuesday Blitz November 29 Late 2022"]
[White "D`Arruda, Ricardo D."]
[Black "Pakleza, Zbigniew"]
[WhiteFideId "100692"]
[BlackFideId "1119290"]
[WhiteElo "2471"]
[BlackElo "2411"]
[Result "0-1"]
[Round "02"]
[TimeControl "180+1"]
[Date "2022.11.30"]
[WhiteClock "0:00:01"]
[BlackClock "0:00:02"]

1. d4 {[%clk 0:03:00]}  d6 {[%clk 0:03:00]} 2. e4 {[%clk 0:03:00]}  Nf6 {[%clk 0:03:00]} 3. Nc3 {[%clk 0:02:59]}  c6 {[%clk 0:03:00]} 4. f4 {[%clk 0:02:57]}  Qb6 {[%clk 0:03:00]} 5. Nf3 {[%clk 0:02:57]}  Bg4 {[%clk 0:03:00]} 6. Be2 {[%clk 0:02:55]}  Bxf3 {[%clk 0:03:01]} 7. Bxf3 {[%clk 0:02:54]}  e5 {[%clk 0:03:02]} 8. Ne2 {[%clk 0:02:45]}  Nbd7 {[%clk 0:03:02]} 9. c3 {[%clk 0:02:43]}  Be7 {[%clk 0:03:02]} 10. Qb3 {[%clk 0:02:43]}  O-O {[%clk 0:03:00]} 11. Qxb6 {[%clk 0:02:41]}  axb6 {[%clk 0:02:56]} 12. O-O {[%clk 0:02:40]}  Rfe8 {[%clk 0:02:57]} 13. Be3 {[%clk 0:02:38]}  Bf8 {[%clk 0:02:51]} 14. dxe5 {[%clk 0:02:35]}  dxe5 {[%clk 0:02:51]} 15. f5 {[%clk 0:02:32]}  Bc5 {[%clk 0:02:47]} 16. Kf2 {[%clk 0:02:31]}  b5 {[%clk 0:02:30]} 17. a3 {[%clk 0:02:29]}  Bxe3+ {[%clk 0:02:27]} 18. Kxe3 {[%clk 0:02:28]}  Nb6 {[%clk 0:02:28]} 19. b3 {[%clk 0:02:07]}  Nfd7 {[%clk 0:02:24]} 20. Rfd1 {[%clk 0:01:57]}  Nc5 {[%clk 0:02:21]} 21. Nc1 {[%clk 0:01:57]}  Kf8 {[%clk 0:02:13]} 22. Ra2 {[%clk 0:01:57]}  Ke7 {[%clk 0:02:09]} 23. Be2 {[%clk 0:01:55]}  Red8 {[%clk 0:01:58]} 24. Rxd8 {[%clk 0:01:54]}  Kxd8 {[%clk 0:01:59]} 25. b4 {[%clk 0:01:45]}  Nca4 {[%clk 0:01:48]} 26. Rc2 {[%clk 0:01:41]}  Kc7 {[%clk 0:01:47]} 27. Nb3 {[%clk 0:01:33]}  Nc4+ {[%clk 0:01:42]} 28. Bxc4 {[%clk 0:01:31]}  bxc4 {[%clk 0:01:43]} 29. Nd2 {[%clk 0:01:24]}  b5 {[%clk 0:01:38]} 30. Nb1 {[%clk 0:01:24]}  Kd6 {[%clk 0:01:10]} 31. Rd2+ {[%clk 0:01:24]}  Ke7 {[%clk 0:01:11]} 32. g4 {[%clk 0:01:23]}  h6 {[%clk 0:01:01]} 33. h4 {[%clk 0:01:22]}  g6 {[%clk 0:00:55]} 34. Rf2 {[%clk 0:01:10]}  Nb6 {[%clk 0:00:50]} 35. fxg6 {[%clk 0:00:49]}  fxg6 {[%clk 0:00:50]} 36. g5 {[%clk 0:00:46]}  hxg5 {[%clk 0:00:21]} 37. hxg5 {[%clk 0:00:47]}  Rd8 {[%clk 0:00:17]} 38. Rf6 {[%clk 0:00:42]}  Rd6 {[%clk 0:00:17]} 39. Rxd6 {[%clk 0:00:41]}  Kxd6 {[%clk 0:00:18]} 40. Nd2 {[%clk 0:00:40]}  Na4 {[%clk 0:00:19]} 41. Nb1 {[%clk 0:00:40]}  Ke6 {[%clk 0:00:19]} 42. Ke2 {[%clk 0:00:33]}  Nb6 {[%clk 0:00:18]} 43. Nd2 {[%clk 0:00:33]}  Nd7 {[%clk 0:00:19]} 44. Nf3 {[%clk 0:00:33]}  Nf8 {[%clk 0:00:16]} 45. Nh4 {[%clk 0:00:32]}  Kd6 {[%clk 0:00:16]} 46. Kd2 {[%clk 0:00:32]}  Ne6 {[%clk 0:00:14]} 47. Nxg6 {[%clk 0:00:30]}  Nxg5 {[%clk 0:00:14]} 48. Ke3 {[%clk 0:00:30]}  Ne6 {[%clk 0:00:12]} 49. Nh4 {[%clk 0:00:29]}  Nf4 {[%clk 0:00:11]} 50. Nf5+ {[%clk 0:00:29]}  Ke6 {[%clk 0:00:11]} 51. Ng7+ {[%clk 0:00:29]}  Kf6 {[%clk 0:00:10]} 52. Ne8+ {[%clk 0:00:28]}  Ke7 {[%clk 0:00:11]} 53. Ng7 {[%clk 0:00:27]}  Nd3 {[%clk 0:00:10]} 54. Nf5+ {[%clk 0:00:26]}  Ke6 {[%clk 0:00:10]} 55. Kd2 {[%clk 0:00:24]}  Kf6 {[%clk 0:00:07]} 56. Nd6 {[%clk 0:00:24]}  Nb2 {[%clk 0:00:05]} 57. Nb7 {[%clk 0:00:22]}  Na4 {[%clk 0:00:03]} 58. Nd8 {[%clk 0:00:19]}  Kg5 {[%clk 0:00:02]} 59. Ke3 {[%clk 0:00:16]}  Nxc3 {[%clk 0:00:01]} 60. Nxc6 {[%clk 0:00:16]}  Kf6 {[%clk 0:00:02]} 61. Na7 {[%clk 0:00:15]}  Ke6 {[%clk 0:00:01]} 62. Nc6 {[%clk 0:00:13]}  Nb1 {[%clk 0:00:01]} 63. a4 {[%clk 0:00:11]}  bxa4 {[%clk 0:00:02]} 64. b5 {[%clk 0:00:11]}  Kd6 {[%clk 0:00:02]} 65. Na5 {[%clk 0:00:07]}  c3 {[%clk 0:00:02]} 66. Kd3 {[%clk 0:00:06]}  Kc5 {[%clk 0:00:01]} 67. Nc4 {[%clk 0:00:02]}  Kxb5 {[%clk 0:00:02]} 68. Nxe5 {[%clk 0:00:02]}  Kb4 {[%clk 0:00:02]} 69. Kc2 {[%clk 0:00:02]}  Na3+ {[%clk 0:00:02]} 70. Kc1 {[%clk 0:00:01]}  Nc4 {[%clk 0:00:02]} 71. Nd3+ {[%clk 0:00:01]}  Kb3 {[%clk 0:00:02]} 72. Nc5+ {[%clk 0:00:01]}  Kb4 {[%clk 0:00:03]} 73. Nd3+ {[%clk 0:00:01]}  Kb3 {[%clk 0:00:02]} 74. Nc5+ {[%clk 0:00:01]}  Ka3 {[%clk 0:00:02]} 0-1


[Site "https://www.chess.com"]

[Event "Titled Tuesday Blitz November 29 Late 2022"]
[White "Dardha, Daniel"]
[Black "Aghasiyev, Kamal"]
[WhiteFideId "240990"]
[BlackFideId "13402854"]
[WhiteElo "2528"]
[BlackElo "2341"]
[Result "1-0"]
[Round "02"]
[TimeControl "180+1"]
[Date "2022.11.30"]
[WhiteClock "0:00:02"]
[BlackClock "0:00:03"]

1. d4 {[%clk 0:03:00]}  d5 {[%clk 0:02:59]} 2. c4 {[%clk 0:03:00]}  e6 {[%clk 0:03:00]} 3. Nf3 {[%clk 0:02:59]}  Nf6 {[%clk 0:03:00]} 4. Nc3 {[%clk 0:02:59]}  Be7 {[%clk 0:02:59]} 5. g3 {[%clk 0:02:55]}  O-O {[%clk 0:02:58]} 6. Bg2 {[%clk 0:02:55]}  c6 {[%clk 0:02:46]} 7. O-O {[%clk 0:02:53]}  Nbd7 {[%clk 0:02:46]} 8. Qd3 {[%clk 0:02:42]}  b6 {[%clk 0:02:37]} 9. e4 {[%clk 0:02:37]}  Ba6 {[%clk 0:02:34]} 10. b3 {[%clk 0:02:37]}  dxc4 {[%clk 0:02:27]} 11. bxc4 {[%clk 0:02:38]}  e5 {[%clk 0:02:28]} 12. Ne2 {[%clk 0:02:37]}  Nc5 {[%clk 0:02:21]} 13. Qc2 {[%clk 0:02:34]}  exd4 {[%clk 0:02:08]} 14. Nexd4 {[%clk 0:02:11]}  Ncxe4 {[%clk 0:01:59]} 15. Nxc6 {[%clk 0:02:05]}  Qc7 {[%clk 0:01:58]} 16. Nfd4 {[%clk 0:01:56]}  Nc5 {[%clk 0:01:39]} 17. Bf4 {[%clk 0:01:30]}  Bd6 {[%clk 0:01:38]} 18. Bxd6 {[%clk 0:01:30]}  Qxd6 {[%clk 0:01:38]} 19. Nf5 {[%clk 0:01:31]}  Qc7 {[%clk 0:01:35]} 20. Nce7+ {[%clk 0:01:28]}  Kh8 {[%clk 0:01:35]} 21. Bxa8 {[%clk 0:01:28]}  Rxa8 {[%clk 0:01:36]} 22. Rad1 {[%clk 0:01:16]}  Ne6 {[%clk 0:01:35]} 23. Qb2 {[%clk 0:01:07]}  Bxc4 {[%clk 0:01:30]} 24. Rfe1 {[%clk 0:01:00]}  Re8 {[%clk 0:01:29]} 25. Rc1 {[%clk 0:00:46]}  Qc5 {[%clk 0:01:17]} 26. Re5 {[%clk 0:00:41]}  Qc7 {[%clk 0:01:09]} 27. Re3 {[%clk 0:00:29]}  Qc5 {[%clk 0:01:02]} 28. Qe5 {[%clk 0:00:17]}  Qxe5 {[%clk 0:00:56]} 29. Rxe5 {[%clk 0:00:18]}  b5 {[%clk 0:00:53]} 30. Nc6 {[%clk 0:00:18]}  a6 {[%clk 0:00:47]} 31. Nd6 {[%clk 0:00:18]}  Rf8 {[%clk 0:00:46]} 32. Nxc4 {[%clk 0:00:16]}  bxc4 {[%clk 0:00:46]} 33. Rxc4 {[%clk 0:00:17]}  g6 {[%clk 0:00:44]} 34. Nb4 {[%clk 0:00:15]}  Nd7 {[%clk 0:00:43]} 35. Ra5 {[%clk 0:00:13]}  Rb8 {[%clk 0:00:40]} 36. Kg2 {[%clk 0:00:09]}  Kg7 {[%clk 0:00:40]} 37. Nxa6 {[%clk 0:00:09]}  Rb2 {[%clk 0:00:39]} 38. Nc7 {[%clk 0:00:08]}  Re2 {[%clk 0:00:19]} 39. Nxe6+ {[%clk 0:00:07]}  Rxe6 {[%clk 0:00:19]} 40. Rc2 {[%clk 0:00:08]}  h5 {[%clk 0:00:17]} 41. Rd2 {[%clk 0:00:08]}  Nf6 {[%clk 0:00:16]} 42. a4 {[%clk 0:00:06]}  Re1 {[%clk 0:00:16]} 43. Ra7 {[%clk 0:00:05]}  Ra1 {[%clk 0:00:14]} 44. a5 {[%clk 0:00:06]}  h4 {[%clk 0:00:14]} 45. gxh4 {[%clk 0:00:06]}  Ra4 {[%clk 0:00:14]} 46. a6 {[%clk 0:00:06]}  Rg4+ {[%clk 0:00:13]} 47. Kf1 {[%clk 0:00:06]}  Ra4 {[%clk 0:00:14]} 48. Re2 {[%clk 0:00:06]}  Nd5 {[%clk 0:00:14]} 49. Re1 {[%clk 0:00:03]}  Nf4 {[%clk 0:00:11]} 50. Rd1 {[%clk 0:00:04]}  Kh6 {[%clk 0:00:10]} 51. Ke1 {[%clk 0:00:04]}  f5 {[%clk 0:00:09]} 52. Ra8 {[%clk 0:00:02]}  Kh5 {[%clk 0:00:09]} 53. a7 {[%clk 0:00:03]}  Kg4 {[%clk 0:00:10]} 54. Rd7 {[%clk 0:00:04]}  Kf3 {[%clk 0:00:06]} 55. Re8 {[%clk 0:00:04]}  Ra1+ {[%clk 0:00:03]} 56. Kd2 {[%clk 0:00:04]}  Ra2+ {[%clk 0:00:04]} 57. Kc1 {[%clk 0:00:04]}  Ne2+ {[%clk 0:00:03]} 58. Kd1 {[%clk 0:00:03]}  Nc3+ {[%clk 0:00:03]} 59. Ke1 {[%clk 0:00:02]} 1-0


[Site "https://www.chess.com"]

[Event "Titled Tuesday Blitz November 29 Late 2022"]
[White "De Souza, Cristiano Gomes"]
[Black "Rodriguez Fontecha, Marcos"]
[WhiteFideId "2151758"]
[BlackFideId "2256576"]
[WhiteElo "2068"]
[BlackElo "2263"]
[Result "0-1"]
[Round "02"]
[TimeControl "180+1"]
[Date "2022.11.30"]
[WhiteClock "0:02:26"]
[BlackClock "0:01:57"]

1. d4 {[%clk 0:03:00]}  d5 {[%clk 0:02:57]} 2. c4 {[%clk 0:03:00]}  Nc6 {[%clk 0:02:57]} 3. Nf3 {[%clk 0:03:00]}  e5 {[%clk 0:02:56]} 4. dxe5 {[%clk 0:03:00]}  Bb4+ {[%clk 0:02:56]} 5. Bd2 {[%clk 0:02:59]}  dxc4 {[%clk 0:02:57]} 6. Nc3 {[%clk 0:02:57]}  Nge7 {[%clk 0:02:55]} 7. e3 {[%clk 0:02:55]}  Be6 {[%clk 0:02:54]} 8. Be2 {[%clk 0:02:42]}  Ng6 {[%clk 0:02:54]} 9. O-O {[%clk 0:02:41]}  Ngxe5 {[%clk 0:02:54]} 10. Nxe5 {[%clk 0:02:40]}  Nxe5 {[%clk 0:02:53]} 11. Bf3 {[%clk 0:02:40]}  Nxf3+ {[%clk 0:02:46]} 12. gxf3 {[%clk 0:02:39]}  Bh3 {[%clk 0:02:35]} 13. f4 {[%clk 0:02:34]}  Bxf1 {[%clk 0:02:10]} 14. Kxf1 {[%clk 0:02:32]}  Qd3+ {[%clk 0:02:09]} 15. Ke1 {[%clk 0:02:30]}  O-O-O {[%clk 0:02:06]} 16. Rc1 {[%clk 0:02:28]}  Rd6 {[%clk 0:02:01]} 17. a3 {[%clk 0:02:26]}  Rg6 {[%clk 0:01:57]} 0-1


[Site "https://www.chess.com"]

[Event "Titled Tuesday Blitz November 29 Late 2022"]
[White "Deac, Bogdan-Daniel"]
[Black "Mekhitarian, Krikor Sevag"]
[WhiteFideId "1226380"]
[BlackFideId "2107660"]
[WhiteElo "3071"]
[BlackElo "2669"]
[Result "1-0"]
[Round "02"]
[TimeControl "180+1"]
[Date "2022.11.30"]
[WhiteClock "0:00:10"]
[BlackClock "0:00:46"]

1. e4 {[%clk 0:03:00]}  c5 {[%clk 0:02:57]} 2. Nf3 {[%clk 0:03:00]}  e6 {[%clk 0:02:56]} 3. g3 {[%clk 0:02:59]}  Nc6 {[%clk 0:02:52]} 4. Bg2 {[%clk 0:02:59]}  Nf6 {[%clk 0:02:51]} 5. Qe2 {[%clk 0:02:59]}  e5 {[%clk 0:02:52]} 6. Nc3 {[%clk 0:02:59]}  d6 {[%clk 0:02:52]} 7. Nd5 {[%clk 0:02:56]}  Be7 {[%clk 0:02:48]} 8. c3 {[%clk 0:02:52]}  Be6 {[%clk 0:02:47]} 9. Nxe7 {[%clk 0:02:48]}  Qxe7 {[%clk 0:02:46]} 10. O-O {[%clk 0:02:49]}  Rd8 {[%clk 0:02:46]} 11. d3 {[%clk 0:02:43]}  O-O {[%clk 0:02:46]} 12. Ng5 {[%clk 0:02:42]}  Bg4 {[%clk 0:02:45]} 13. f3 {[%clk 0:02:43]}  Bc8 {[%clk 0:02:45]} 14. f4 {[%clk 0:02:42]}  Rfe8 {[%clk 0:02:43]} 15. c4 {[%clk 0:01:46]}  Nd4 {[%clk 0:02:40]} 16. Qd2 {[%clk 0:01:46]}  Bg4 {[%clk 0:02:37]} 17. h3 {[%clk 0:01:43]}  Bc8 {[%clk 0:02:35]} 18. Qf2 {[%clk 0:01:31]}  b5 {[%clk 0:02:29]} 19. b3 {[%clk 0:01:29]}  b4 {[%clk 0:02:15]} 20. Nf3 {[%clk 0:01:27]}  Nxf3+ {[%clk 0:02:09]} 21. Qxf3 {[%clk 0:01:27]}  Nd7 {[%clk 0:02:08]} 22. f5 {[%clk 0:01:25]}  f6 {[%clk 0:02:08]} 23. a4 {[%clk 0:01:14]}  Nf8 {[%clk 0:02:05]} 24. h4 {[%clk 0:01:13]}  h6 {[%clk 0:02:05]} 25. Qg4 {[%clk 0:01:00]}  Kh8 {[%clk 0:02:02]} 26. Qe2 {[%clk 0:00:30]}  Nh7 {[%clk 0:02:00]} 27. Bf3 {[%clk 0:00:30]}  Rf8 {[%clk 0:02:00]} 28. Bh5 {[%clk 0:00:31]}  Bd7 {[%clk 0:02:01]} 29. Bg6 {[%clk 0:00:31]}  Be8 {[%clk 0:02:01]} 30. Qh5 {[%clk 0:00:31]}  Rg8 {[%clk 0:02:01]} 31. g4 {[%clk 0:00:27]}  Nf8 {[%clk 0:01:55]} 32. g5 {[%clk 0:00:20]}  fxg5 {[%clk 0:00:56]} 33. Bxg5 {[%clk 0:00:15]}  Qd7 {[%clk 0:00:48]} 34. Bxd8 {[%clk 0:00:11]}  Bxg6 {[%clk 0:00:46]} 35. fxg6 {[%clk 0:00:11]}  Qxd8 {[%clk 0:00:47]} 36. Rf7 {[%clk 0:00:10]}  Ne6 {[%clk 0:00:46]} 37. Qxh6+ {[%clk 0:00:10]} 1-0


[Site "https://www.chess.com"]

[Event "Titled Tuesday Blitz November 29 Late 2022"]
[White "Delorme, Alban"]
[Black "Szalay, Karoly"]
[WhiteFideId "623636"]
[BlackFideId "2600544"]
[WhiteElo "2197"]
[BlackElo "2537"]
[Result "0-1"]
[Round "02"]
[TimeControl "180+1"]
[Date "2022.11.30"]
[WhiteClock "0:01:17"]
[BlackClock "0:01:48"]

1. d4 {[%clk 0:02:40]}  d5 {[%clk 0:02:59]} 2. Nf3 {[%clk 0:02:40]}  e6 {[%clk 0:02:59]} 3. g3 {[%clk 0:02:41]}  Nf6 {[%clk 0:02:57]} 4. Bg2 {[%clk 0:02:41]}  Be7 {[%clk 0:02:58]} 5. O-O {[%clk 0:02:40]}  O-O {[%clk 0:02:55]} 6. c4 {[%clk 0:02:40]}  c6 {[%clk 0:02:55]} 7. Nc3 {[%clk 0:02:36]}  b6 {[%clk 0:02:54]} 8. Ne5 {[%clk 0:02:32]}  Ba6 {[%clk 0:02:54]} 9. Bf4 {[%clk 0:02:31]}  Qe8 {[%clk 0:02:53]} 10. b3 {[%clk 0:02:23]}  Nfd7 {[%clk 0:02:50]} 11. cxd5 {[%clk 0:02:17]}  Nxe5 {[%clk 0:02:48]} 12. Bxe5 {[%clk 0:02:12]}  cxd5 {[%clk 0:02:48]} 13. Rc1 {[%clk 0:02:00]}  Nd7 {[%clk 0:02:48]} 14. Re1 {[%clk 0:01:56]}  Ba3 {[%clk 0:02:45]} 15. Rc2 {[%clk 0:01:48]}  Nxe5 {[%clk 0:02:45]} 16. dxe5 {[%clk 0:01:49]}  Rc8 {[%clk 0:02:45]} 17. e4 {[%clk 0:01:46]}  Bb4 {[%clk 0:02:34]} 18. Re3 {[%clk 0:01:42]}  d4 {[%clk 0:02:30]} 19. Qxd4 {[%clk 0:01:40]}  Bc5 {[%clk 0:02:31]} 20. Qd2 {[%clk 0:01:40]}  Bxe3 {[%clk 0:02:31]} 21. Qxe3 {[%clk 0:01:41]}  Qc6 {[%clk 0:02:30]} 22. Rc1 {[%clk 0:01:37]}  Rfd8 {[%clk 0:02:25]} 23. Ne2 {[%clk 0:01:32]}  Qxc1+ {[%clk 0:02:15]} 24. Nxc1 {[%clk 0:01:32]}  Rd1+ {[%clk 0:02:15]} 25. Bf1 {[%clk 0:01:32]}  Bxf1 {[%clk 0:02:15]} 26. h4 {[%clk 0:01:27]}  Rcxc1 {[%clk 0:02:08]} 27. Kh2 {[%clk 0:01:27]}  h5 {[%clk 0:01:53]} 28. g4 {[%clk 0:01:17]}  hxg4 {[%clk 0:01:51]} 29. Kg3 {[%clk 0:01:17]}  Rd3 {[%clk 0:01:48]} 0-1


[Site "https://www.chess.com"]